[Event "Titled Tuesday Blitz February 14 Late 2023"]
[White "Guzman Moneo, Alberto"]
[Black "Oro, Faustino"]
[WhiteFideId "2209616"]
[BlackFideId "20000197"]
[WhiteElo "2170"]
[BlackElo "2269"]
[Result "0-1"]
[Round "05"]
[TimeControl "180+2"]
[Date "2023.02.14"]
[WhiteClock "0:00:09"]
[BlackClock "0:00:40"]

1. Nf3 {[%clk 0:02:59]}  Nf6 {[%clk 0:02:59]} 2. g3 {[%clk 0:02:59]}  d5 {[%clk 0:02:59]} 3. Bg2 {[%clk 0:02:59]}  c6 {[%clk 0:03:00]} 4. d3 {[%clk 0:02:59]}  Bf5 {[%clk 0:02:55]} 5. Nbd2 {[%clk 0:02:59]}  e6 {[%clk 0:02:56]} 6. b3 {[%clk 0:02:59]}  h6 {[%clk 0:02:56]} 7. Bb2 {[%clk 0:02:59]}  Be7 {[%clk 0:02:56]} 8. c4 {[%clk 0:02:59]}  O-O {[%clk 0:02:54]} 9. O-O {[%clk 0:02:58]}  Nbd7 {[%clk 0:02:54]} 10. Rc1 {[%clk 0:02:56]}  Re8 {[%clk 0:02:48]} 11. Ne5 {[%clk 0:02:51]}  Bh7 {[%clk 0:02:42]} 12. Rc2 {[%clk 0:02:46]}  Bd6 {[%clk 0:02:41]} 13. Qa1 {[%clk 0:02:45]}  Qc7 {[%clk 0:02:37]} 14. Ndf3 {[%clk 0:02:43]}  Nxe5 {[%clk 0:02:32]} 15. Bxe5 {[%clk 0:02:42]}  Qe7 {[%clk 0:02:16]} 16. Rfc1 {[%clk 0:02:29]}  Rad8 {[%clk 0:02:08]} 17. h3 {[%clk 0:02:16]}  a5 {[%clk 0:01:50]} 18. Bxd6 {[%clk 0:02:11]}  Qxd6 {[%clk 0:01:48]} 19. Qe5 {[%clk 0:02:07]}  Qe7 {[%clk 0:01:28]} 20. g4 {[%clk 0:01:53]}  Nd7 {[%clk 0:01:19]} 21. Qc7 {[%clk 0:01:49]}  Nf8 {[%clk 0:01:19]} 22. Qxa5 {[%clk 0:01:46]}  e5 {[%clk 0:01:09]} 23. cxd5 {[%clk 0:01:37]}  cxd5 {[%clk 0:01:10]} 24. Rc7 {[%clk 0:01:34]}  Qf6 {[%clk 0:01:08]} 25. Qc3 {[%clk 0:01:29]}  d4 {[%clk 0:00:58]} 26. Qd2 {[%clk 0:01:19]}  e4 {[%clk 0:00:58]} 27. dxe4 {[%clk 0:01:15]}  Bxe4 {[%clk 0:00:59]} 28. Nh2 {[%clk 0:01:02]}  Bxg2 {[%clk 0:00:55]} 29. Kxg2 {[%clk 0:01:03]}  Ne6 {[%clk 0:00:55]} 30. Rxb7 {[%clk 0:00:46]}  Nf4+ {[%clk 0:00:54]} 31. Kh1 {[%clk 0:00:42]}  Nxe2 {[%clk 0:00:46]} 32. Rcc7 {[%clk 0:00:09]}  Qxf2 {[%clk 0:00:41]} 33. Qd1 {[%clk 0:00:09]}  Ng3# {[%clk 0:00:40]} 0-1


[Site "https://www.chess.com"]

[Event "Titled Tuesday Blitz February 14 Late 2023"]
[White "Salimova, Nurgyul"]
[Black "Reprintsev, Alexander"]
[WhiteFideId "2915138"]
[BlackFideId "14100541"]
[WhiteElo "2391"]
[BlackElo "2253"]
[Result "1-0"]
[Round "05"]
[TimeControl "180+2"]
[Date "2023.02.14"]
[WhiteClock "0:00:08"]
[BlackClock "0:00:15"]

1. e4 {[%clk 0:03:00]}  d5 {[%clk 0:02:46]} 2. exd5 {[%clk 0:03:00]}  Qxd5 {[%clk 0:02:44]} 3. Nc3 {[%clk 0:03:00]}  Qa5 {[%clk 0:02:43]} 4. d4 {[%clk 0:03:00]}  Nf6 {[%clk 0:02:42]} 5. Nf3 {[%clk 0:02:59]}  Nc6 {[%clk 0:02:42]} 6. h3 {[%clk 0:02:21]}  Ne4 {[%clk 0:02:36]} 7. Bd3 {[%clk 0:02:14]}  Nxc3 {[%clk 0:02:34]} 8. bxc3 {[%clk 0:02:15]}  e5 {[%clk 0:02:28]} 9. O-O {[%clk 0:02:14]}  Bd6 {[%clk 0:02:28]} 10. dxe5 {[%clk 0:01:54]}  Nxe5 {[%clk 0:02:27]} 11. Nxe5 {[%clk 0:01:54]}  Bxe5 {[%clk 0:02:28]} 12. Re1 {[%clk 0:01:53]}  Be6 {[%clk 0:02:25]} 13. Rb1 {[%clk 0:01:16]}  Bxc3 {[%clk 0:02:18]} 14. Rb5 {[%clk 0:01:04]}  Bxe1 {[%clk 0:02:16]} 15. Rxa5 {[%clk 0:01:03]}  Bxa5 {[%clk 0:02:17]} 16. Bg5 {[%clk 0:00:48]}  Bc3 {[%clk 0:01:53]} 17. Qf3 {[%clk 0:00:15]}  c6 {[%clk 0:01:29]} 18. Ba6 {[%clk 0:00:14]}  O-O {[%clk 0:01:22]} 19. Bxb7 {[%clk 0:00:13]}  Rab8 {[%clk 0:01:22]} 20. Qxc3 {[%clk 0:00:10]}  Rxb7 {[%clk 0:01:22]} 21. Qxc6 {[%clk 0:00:08]}  Rb1+ {[%clk 0:01:16]} 22. Kh2 {[%clk 0:00:08]}  a5 {[%clk 0:00:35]} 23. a3 {[%clk 0:00:08]}  h6 {[%clk 0:00:32]} 24. Be3 {[%clk 0:00:08]}  Rbb8 {[%clk 0:00:20]} 25. Qe4 {[%clk 0:00:09]}  Rbc8 {[%clk 0:00:18]} 26. Bd4 {[%clk 0:00:09]}  Rfd8 {[%clk 0:00:16]} 27. c3 {[%clk 0:00:10]}  Rd5 {[%clk 0:00:15]} 28. g4 {[%clk 0:00:10]}  Rcd8 {[%clk 0:00:15]} 29. f4 {[%clk 0:00:09]}  Bc8 {[%clk 0:00:15]} 30. f5 {[%clk 0:00:09]}  Bb7 {[%clk 0:00:15]} 31. Qe7 {[%clk 0:00:08]}  R5d7 {[%clk 0:00:15]} 32. Qe5 {[%clk 0:00:08]}  Bd5 {[%clk 0:00:15]} 33. Qxg7# {[%clk 0:00:08]} 1-0


[Site "https://www.chess.com"]

[Event "Titled Tuesday Blitz February 14 Late 2023"]
[White "benny_aizenberg"]
[Black "Papasimakopoulos, Alexandros"]
[BlackFideId "4244125"]
[WhiteElo "2558"]
[BlackElo "2401"]
[Result "1-0"]
[Round "05"]
[TimeControl "180+2"]
[Date "2023.02.14"]
[WhiteClock "0:00:12"]
[BlackClock "0:00:01"]

1. Nf3 {[%clk 0:03:00]}  f5 {[%clk 0:02:56]} 2. d3 {[%clk 0:02:59]}  Nc6 {[%clk 0:02:56]} 3. e4 {[%clk 0:02:59]}  e5 {[%clk 0:02:56]} 4. Nc3 {[%clk 0:02:57]}  Nf6 {[%clk 0:02:56]} 5. Bg5 {[%clk 0:02:52]}  Bb4 {[%clk 0:02:52]} 6. Nd2 {[%clk 0:02:38]}  Bxc3 {[%clk 0:02:47]} 7. bxc3 {[%clk 0:02:38]}  d6 {[%clk 0:02:47]} 8. Be2 {[%clk 0:02:36]}  h6 {[%clk 0:02:45]} 9. Bh5+ {[%clk 0:02:34]}  Kf8 {[%clk 0:02:40]} 10. Bxf6 {[%clk 0:02:34]}  Qxf6 {[%clk 0:02:41]} 11. exf5 {[%clk 0:02:27]}  Bxf5 {[%clk 0:02:40]} 12. O-O {[%clk 0:02:27]}  g6 {[%clk 0:02:40]} 13. Bg4 {[%clk 0:02:26]}  Kg7 {[%clk 0:02:37]} 14. Rb1 {[%clk 0:02:25]}  b6 {[%clk 0:02:35]} 15. Bf3 {[%clk 0:02:14]}  Bd7 {[%clk 0:02:35]} 16. Bd5 {[%clk 0:02:09]}  Raf8 {[%clk 0:02:33]} 17. Ne4 {[%clk 0:02:09]}  Qh4 {[%clk 0:02:25]} 18. Ng3 {[%clk 0:02:03]}  Ne7 {[%clk 0:02:22]} 19. Rb4 {[%clk 0:01:48]}  Rf4 {[%clk 0:02:15]} 20. Be4 {[%clk 0:01:46]}  d5 {[%clk 0:02:08]} 21. Bf3 {[%clk 0:01:34]}  Rxb4 {[%clk 0:02:07]} 22. cxb4 {[%clk 0:01:33]}  Qxb4 {[%clk 0:02:08]} 23. Re1 {[%clk 0:01:29]}  Qd4 {[%clk 0:01:49]} 24. Ne2 {[%clk 0:01:28]}  Qh4 {[%clk 0:01:44]} 25. Nc3 {[%clk 0:01:27]}  d4 {[%clk 0:01:24]} 26. Ne4 {[%clk 0:01:25]}  Nf5 {[%clk 0:01:18]} 27. Bg4 {[%clk 0:01:24]}  Re8 {[%clk 0:01:14]} 28. Bxf5 {[%clk 0:01:13]}  gxf5 {[%clk 0:01:12]} 29. Ng3 {[%clk 0:01:13]}  c5 {[%clk 0:01:08]} 30. Qf3 {[%clk 0:01:11]}  f4 {[%clk 0:00:33]} 31. Nf1 {[%clk 0:00:46]}  Re7 {[%clk 0:00:29]} 32. Nd2 {[%clk 0:00:46]}  Qg4 {[%clk 0:00:23]} 33. Qa8 {[%clk 0:00:35]}  Bf5 {[%clk 0:00:18]} 34. Nf3 {[%clk 0:00:28]}  Bg6 {[%clk 0:00:08]} 35. Qd8 {[%clk 0:00:20]}  Qd7 {[%clk 0:00:07]} 36. Qxd7 {[%clk 0:00:16]}  Rxd7 {[%clk 0:00:08]} 37. Rxe5 {[%clk 0:00:16]}  Rc7 {[%clk 0:00:07]} 38. Nd2 {[%clk 0:00:15]}  b5 {[%clk 0:00:06]} 39. g3 {[%clk 0:00:13]}  fxg3 {[%clk 0:00:06]} 40. hxg3 {[%clk 0:00:14]}  c4 {[%clk 0:00:06]} 41. Rxb5 {[%clk 0:00:13]}  cxd3 {[%clk 0:00:06]} 42. cxd3 {[%clk 0:00:14]}  Bxd3 {[%clk 0:00:06]} 43. Rd5 {[%clk 0:00:14]}  Rc2 {[%clk 0:00:06]} 44. Nb3 {[%clk 0:00:13]}  Rxa2 {[%clk 0:00:03]} 45. Rxd4 {[%clk 0:00:12]}  Be2 {[%clk 0:00:01]} 46. Kg2 {[%clk 0:00:12]} 1-0


[Site "https://www.chess.com"]

[Event "Titled Tuesday Blitz February 14 Late 2023"]
[White "Firat, Burak"]
[Black "Ehlvest, Jaan"]
[WhiteFideId "6305881"]
[BlackFideId "4500016"]
[WhiteElo "2456"]
[BlackElo "2530"]
[Result "1-0"]
[Round "05"]
[TimeControl "180+2"]
[Date "2023.02.14"]
[WhiteClock "0:00:07"]
[BlackClock "0:00:02"]

1. Nf3 {[%clk 0:02:59]}  d5 {[%clk 0:02:55]} 2. c4 {[%clk 0:02:59]}  e6 {[%clk 0:02:51]} 3. g3 {[%clk 0:03:00]}  Nf6 {[%clk 0:02:50]} 4. Bg2 {[%clk 0:03:01]}  dxc4 {[%clk 0:02:50]} 5. Qa4+ {[%clk 0:03:00]}  Nbd7 {[%clk 0:02:49]} 6. Qxc4 {[%clk 0:02:59]}  c5 {[%clk 0:02:49]} 7. Qc2 {[%clk 0:02:59]}  Rb8 {[%clk 0:02:39]} 8. d4 {[%clk 0:02:54]}  cxd4 {[%clk 0:02:35]} 9. O-O {[%clk 0:02:54]}  Bc5 {[%clk 0:02:33]} 10. Bf4 {[%clk 0:02:53]}  Ra8 {[%clk 0:02:32]} 11. Ne5 {[%clk 0:02:51]}  O-O {[%clk 0:02:29]} 12. Nd2 {[%clk 0:02:51]}  Bb6 {[%clk 0:02:02]} 13. Ndc4 {[%clk 0:02:47]}  Nd5 {[%clk 0:01:57]} 14. Rfd1 {[%clk 0:02:27]}  Nxf4 {[%clk 0:01:53]} 15. gxf4 {[%clk 0:02:27]}  Nxe5 {[%clk 0:01:52]} 16. fxe5 {[%clk 0:02:27]}  Qg5 {[%clk 0:01:43]} 17. Qe4 {[%clk 0:02:22]}  Bd7 {[%clk 0:01:37]} 18. Qxb7 {[%clk 0:02:03]}  Bb5 {[%clk 0:01:27]} 19. Nxb6 {[%clk 0:02:00]}  axb6 {[%clk 0:01:25]} 20. Qe4 {[%clk 0:01:52]}  Rad8 {[%clk 0:01:21]} 21. Rac1 {[%clk 0:01:41]}  d3 {[%clk 0:00:49]} 22. e3 {[%clk 0:01:41]}  d2 {[%clk 0:00:43]} 23. Ra1 {[%clk 0:01:26]}  Be2 {[%clk 0:00:42]} 24. Qf4 {[%clk 0:01:06]}  Qh5 {[%clk 0:00:40]} 25. f3 {[%clk 0:01:06]}  Rd3 {[%clk 0:00:34]} 26. Bf1 {[%clk 0:00:42]}  Bxf3 {[%clk 0:00:26]} 27. Bxd3 {[%clk 0:00:40]}  Bxd1 {[%clk 0:00:26]} 28. e4 {[%clk 0:00:40]}  Bf3 {[%clk 0:00:21]} 29. Qxd2 {[%clk 0:00:40]}  Qg4+ {[%clk 0:00:21]} 30. Kf1 {[%clk 0:00:40]}  f6 {[%clk 0:00:20]} 31. Qe3 {[%clk 0:00:19]}  fxe5 {[%clk 0:00:19]} 32. Ke1 {[%clk 0:00:20]}  Qh4+ {[%clk 0:00:16]} 33. Kd2 {[%clk 0:00:19]}  Qxh2+ {[%clk 0:00:16]} 34. Kc3 {[%clk 0:00:19]}  Bh5 {[%clk 0:00:13]} 35. Rf1 {[%clk 0:00:17]}  Rc8+ {[%clk 0:00:12]} 36. Kb3 {[%clk 0:00:17]}  Bg6 {[%clk 0:00:11]} 37. Rc1 {[%clk 0:00:15]}  Rd8 {[%clk 0:00:11]} 38. Bc4 {[%clk 0:00:14]}  Kh8 {[%clk 0:00:08]} 39. Bxe6 {[%clk 0:00:13]}  h6 {[%clk 0:00:07]} 40. a4 {[%clk 0:00:10]}  Qg2 {[%clk 0:00:05]} 41. Bd5 {[%clk 0:00:09]}  Rf8 {[%clk 0:00:05]} 42. Rc3 {[%clk 0:00:09]}  Qf1 {[%clk 0:00:04]} 43. Bc4 {[%clk 0:00:08]}  Qd1+ {[%clk 0:00:02]} 44. Ka3 {[%clk 0:00:07]}  Qd6+ {[%clk 0:00:02]} 45. b4 {[%clk 0:00:07]}  Ra8 {[%clk 0:00:02]} 46. Bb5 {[%clk 0:00:06]}  Rd8 {[%clk 0:00:02]} 47. Rd3 {[%clk 0:00:06]}  Qe7 {[%clk 0:00:02]} 48. Rxd8+ {[%clk 0:00:06]}  Qxd8 {[%clk 0:00:03]} 49. Qd3 {[%clk 0:00:07]}  Qc7 {[%clk 0:00:03]} 50. Qc4 {[%clk 0:00:06]}  Qxc4 {[%clk 0:00:03]} 51. Bxc4 {[%clk 0:00:07]}  Bxe4 {[%clk 0:00:02]} 52. a5 {[%clk 0:00:08]}  h5 {[%clk 0:00:02]} 53. a6 {[%clk 0:00:05]}  h4 {[%clk 0:00:03]} 54. Be6 {[%clk 0:00:06]}  g5 {[%clk 0:00:02]} 55. Bc8 {[%clk 0:00:06]}  Kg7 {[%clk 0:00:02]} 56. Bb7 {[%clk 0:00:07]} 1-0


[Site "https://www.chess.com"]

[Event "Titled Tuesday Blitz February 14 Late 2023"]
[White "Gascon Del Nogal, Jose Rafael"]
[Black "ArchibaldCerveza29"]
[WhiteFideId "3902463"]
[WhiteElo "2459"]
[BlackElo "2469"]
[Result "1-0"]
[Round "05"]
[TimeControl "180+2"]
[Date "2023.02.14"]
[WhiteClock "0:00:17"]
[BlackClock "0:00:02"]

1. e4 {[%clk 0:03:00]}  e5 {[%clk 0:02:35]} 2. Nf3 {[%clk 0:03:00]}  Nc6 {[%clk 0:02:34]} 3. Bc4 {[%clk 0:03:00]}  Nf6 {[%clk 0:02:33]} 4. d3 {[%clk 0:02:56]}  Be7 {[%clk 0:02:32]} 5. O-O {[%clk 0:02:54]}  O-O {[%clk 0:02:33]} 6. Re1 {[%clk 0:02:50]}  d6 {[%clk 0:02:33]} 7. a4 {[%clk 0:02:46]}  Na5 {[%clk 0:02:33]} 8. Ba2 {[%clk 0:02:45]}  c5 {[%clk 0:02:33]} 9. Na3 {[%clk 0:02:41]}  Nc6 {[%clk 0:02:32]} 10. c3 {[%clk 0:02:39]}  a6 {[%clk 0:02:31]} 11. Bd2 {[%clk 0:02:38]}  Rb8 {[%clk 0:02:31]} 12. Nc2 {[%clk 0:02:32]}  b5 {[%clk 0:02:31]} 13. axb5 {[%clk 0:02:33]}  axb5 {[%clk 0:02:32]} 14. Ne3 {[%clk 0:02:32]}  b4 {[%clk 0:02:25]} 15. Bc4 {[%clk 0:02:30]}  Na5 {[%clk 0:02:12]} 16. Bd5 {[%clk 0:02:03]}  bxc3 {[%clk 0:02:08]} 17. bxc3 {[%clk 0:02:00]}  Nxd5 {[%clk 0:02:07]} 18. Nxd5 {[%clk 0:01:53]}  Nc6 {[%clk 0:01:02]} 19. Be3 {[%clk 0:01:26]}  Be6 {[%clk 0:01:01]} 20. Ra6 {[%clk 0:01:13]}  Rc8 {[%clk 0:00:34]} 21. Qa4 {[%clk 0:01:09]}  Nb8 {[%clk 0:00:30]} 22. Ra7 {[%clk 0:01:09]}  Bxd5 {[%clk 0:00:30]} 23. exd5 {[%clk 0:01:07]}  f5 {[%clk 0:00:30]} 24. Rb1 {[%clk 0:00:32]}  Rc7 {[%clk 0:00:22]} 25. Rbb7 {[%clk 0:00:30]}  Rxb7 {[%clk 0:00:21]} 26. Rxb7 {[%clk 0:00:31]}  Bf6 {[%clk 0:00:21]} 27. Qa7 {[%clk 0:00:22]}  Qc8 {[%clk 0:00:18]} 28. Bg5 {[%clk 0:00:18]}  Nd7 {[%clk 0:00:02]} 29. Rxd7 {[%clk 0:00:17]} 1-0


[Site "https://www.chess.com"]

[Event "Titled Tuesday Blitz February 14 Late 2023"]
[White "Erdogan, Anil Berk"]
[Black "Cuenca Jimenez, Jose Fernando"]
[WhiteFideId "6348173"]
[BlackFideId "2255570"]
[WhiteElo "2091"]
[BlackElo "2535"]
[Result "1-0"]
[Round "05"]
[TimeControl "180+2"]
[Date "2023.02.14"]
[WhiteClock "0:00:09"]
[BlackClock "0:01:23"]

1. e4 {[%clk 0:03:00]}  c5 {[%clk 0:03:00]} 2. Nf3 {[%clk 0:02:59]}  Nc6 {[%clk 0:03:00]} 3. d4 {[%clk 0:02:59]}  cxd4 {[%clk 0:03:01]} 4. Nxd4 {[%clk 0:03:00]}  e5 {[%clk 0:03:01]} 5. Nb5 {[%clk 0:02:54]}  d6 {[%clk 0:03:02]} 6. N1c3 {[%clk 0:02:53]}  a6 {[%clk 0:03:02]} 7. Na3 {[%clk 0:02:53]}  Be7 {[%clk 0:03:03]} 8. Nd5 {[%clk 0:02:53]}  Nf6 {[%clk 0:03:02]} 9. Nxf6+ {[%clk 0:02:37]}  Bxf6 {[%clk 0:03:03]} 10. Bc4 {[%clk 0:02:34]}  O-O {[%clk 0:03:01]} 11. O-O {[%clk 0:02:33]}  Be6 {[%clk 0:02:54]} 12. Be3 {[%clk 0:02:20]}  b5 {[%clk 0:02:53]} 13. Bd5 {[%clk 0:02:20]}  Rc8 {[%clk 0:02:53]} 14. c4 {[%clk 0:02:16]}  b4 {[%clk 0:02:50]} 15. Nc2 {[%clk 0:02:13]}  a5 {[%clk 0:02:46]} 16. b3 {[%clk 0:02:07]}  Ne7 {[%clk 0:02:38]} 17. a3 {[%clk 0:01:57]}  bxa3 {[%clk 0:02:37]} 18. Rxa3 {[%clk 0:01:57]}  Nxd5 {[%clk 0:02:33]} 19. exd5 {[%clk 0:01:43]}  Bf5 {[%clk 0:02:33]} 20. Qd2 {[%clk 0:01:36]}  Rb8 {[%clk 0:02:31]} 21. f4 {[%clk 0:01:19]}  Qd7 {[%clk 0:02:29]} 22. fxe5 {[%clk 0:01:16]}  Bxe5 {[%clk 0:02:27]} 23. Nd4 {[%clk 0:01:12]}  Bxd4 {[%clk 0:02:16]} 24. Bxd4 {[%clk 0:01:09]}  Rfe8 {[%clk 0:02:14]} 25. Qc3 {[%clk 0:00:54]}  f6 {[%clk 0:02:11]} 26. Rxa5 {[%clk 0:00:53]}  Rb7 {[%clk 0:02:06]} 27. Qg3 {[%clk 0:00:47]}  Bg6 {[%clk 0:01:59]} 28. Ra6 {[%clk 0:00:45]}  Rd8 {[%clk 0:01:56]} 29. Re1 {[%clk 0:00:35]}  Bc2 {[%clk 0:01:41]} 30. Bxf6 {[%clk 0:00:21]}  Qf7 {[%clk 0:01:41]} 31. Bxd8 {[%clk 0:00:18]}  Rxb3 {[%clk 0:01:40]} 32. Qf2 {[%clk 0:00:17]}  Qd7 {[%clk 0:01:36]} 33. Rxd6 {[%clk 0:00:14]}  Qa4 {[%clk 0:01:33]} 34. Bb6 {[%clk 0:00:12]}  h6 {[%clk 0:01:32]} 35. Rd8+ {[%clk 0:00:11]}  Kh7 {[%clk 0:01:33]} 36. Bd4 {[%clk 0:00:11]}  Qxc4 {[%clk 0:01:32]} 37. Rd7 {[%clk 0:00:10]}  Kg6 {[%clk 0:01:24]} 38. Rxg7+ {[%clk 0:00:10]}  Kh5 {[%clk 0:01:25]} 39. Qe2+ {[%clk 0:00:07]}  Qxe2 {[%clk 0:01:24]} 40. Rxe2 {[%clk 0:00:08]}  Bd3 {[%clk 0:01:22]} 41. Re5+ {[%clk 0:00:08]}  Kh4 {[%clk 0:01:22]} 42. g3+ {[%clk 0:00:08]}  Kh3 {[%clk 0:01:23]} 43. Rh5# {[%clk 0:00:09]} 1-0


[Site "https://www.chess.com"]

[Event "Titled Tuesday Blitz February 14 Late 2023"]
[White "Le Goff, Ronan"]
[Black "Di Berardino, Diego Rafael"]
[WhiteFideId "612073"]
[BlackFideId "2105446"]
[WhiteElo "2320"]
[BlackElo "2479"]
[Result "1-0"]
[Round "05"]
[TimeControl "180+2"]
[Date "2023.02.14"]
[WhiteClock "0:01:05"]
[BlackClock "0:00:10"]

1. d4 {[%clk 0:03:00]}  Nf6 {[%clk 0:02:59]} 2. Nf3 {[%clk 0:03:00]}  d5 {[%clk 0:02:57]} 3. Bf4 {[%clk 0:02:59]}  c5 {[%clk 0:02:55]} 4. e3 {[%clk 0:02:58]}  Nc6 {[%clk 0:02:55]} 5. Nc3 {[%clk 0:02:57]}  a6 {[%clk 0:02:46]} 6. dxc5 {[%clk 0:02:54]}  e6 {[%clk 0:02:42]} 7. Na4 {[%clk 0:02:52]}  Bxc5 {[%clk 0:02:29]} 8. Nxc5 {[%clk 0:02:52]}  Qa5+ {[%clk 0:02:29]} 9. c3 {[%clk 0:02:49]}  Qxc5 {[%clk 0:02:29]} 10. Bd3 {[%clk 0:02:48]}  O-O {[%clk 0:02:29]} 11. O-O {[%clk 0:02:48]}  Re8 {[%clk 0:02:20]} 12. Ne5 {[%clk 0:02:47]}  Nxe5 {[%clk 0:02:12]} 13. Bxe5 {[%clk 0:02:47]}  b5 {[%clk 0:02:05]} 14. Bd4 {[%clk 0:02:39]}  Qe7 {[%clk 0:02:00]} 15. f4 {[%clk 0:02:39]}  Bb7 {[%clk 0:01:59]} 16. Rf3 {[%clk 0:02:39]}  Ne4 {[%clk 0:01:55]} 17. Bxe4 {[%clk 0:02:31]}  dxe4 {[%clk 0:01:55]} 18. Rh3 {[%clk 0:02:32]}  f6 {[%clk 0:01:44]} 19. Qh5 {[%clk 0:02:31]}  h6 {[%clk 0:01:41]} 20. Qg6 {[%clk 0:02:23]}  e5 {[%clk 0:01:28]} 21. fxe5 {[%clk 0:02:16]}  fxe5 {[%clk 0:01:22]} 22. Rxh6 {[%clk 0:02:15]}  Rf8 {[%clk 0:00:36]} 23. Qh7+ {[%clk 0:01:54]}  Kf7 {[%clk 0:00:36]} 24. Rf1+ {[%clk 0:01:51]}  Ke8 {[%clk 0:00:36]} 25. Rxf8+ {[%clk 0:01:45]}  Qxf8 {[%clk 0:00:35]} 26. Re6+ {[%clk 0:01:41]}  Kd7 {[%clk 0:00:33]} 27. Rxe5 {[%clk 0:01:35]}  Qf7 {[%clk 0:00:33]} 28. Rg5 {[%clk 0:01:28]}  Rg8 {[%clk 0:00:32]} 29. Rxg7 {[%clk 0:01:23]}  Rxg7 {[%clk 0:00:32]} 30. Qxg7 {[%clk 0:01:24]}  Qxg7 {[%clk 0:00:31]} 31. Bxg7 {[%clk 0:01:24]}  Bd5 {[%clk 0:00:31]} 32. a3 {[%clk 0:01:24]}  Ke6 {[%clk 0:00:31]} 33. g4 {[%clk 0:01:22]}  Bb3 {[%clk 0:00:30]} 34. Kf2 {[%clk 0:01:18]}  Bd1 {[%clk 0:00:30]} 35. Kg3 {[%clk 0:01:13]}  Kd5 {[%clk 0:00:31]} 36. b4 {[%clk 0:01:12]}  Ke6 {[%clk 0:00:27]} 37. Kf4 {[%clk 0:01:10]}  Bf3 {[%clk 0:00:27]} 38. h4 {[%clk 0:01:10]}  Kf7 {[%clk 0:00:28]} 39. Bd4 {[%clk 0:01:10]}  Ke6 {[%clk 0:00:27]} 40. h5 {[%clk 0:01:08]}  Kf7 {[%clk 0:00:27]} 41. Kf5 {[%clk 0:01:07]}  Kg8 {[%clk 0:00:24]} 42. h6 {[%clk 0:01:05]}  Kh7 {[%clk 0:00:10]} 43. g5 {[%clk 0:01:05]} 1-0


[Site "https://www.chess.com"]

[Event "Titled Tuesday Blitz February 14 Late 2023"]
[White "Forgacs, Attila Jr."]
[Black "Saveliev, Alexei"]
[WhiteFideId "773654"]
[BlackFideId "24128546"]
[WhiteElo "2264"]
[BlackElo "2385"]
[Result "0-1"]
[Round "05"]
[TimeControl "180+2"]
[Date "2023.02.14"]
[WhiteClock "0:00:02"]
[BlackClock "0:00:07"]

1. e4 {[%clk 0:03:00]}  g6 {[%clk 0:02:59]} 2. d4 {[%clk 0:02:57]}  Bg7 {[%clk 0:02:59]} 3. Nc3 {[%clk 0:02:57]}  d6 {[%clk 0:02:59]} 4. f4 {[%clk 0:02:58]}  Nc6 {[%clk 0:02:59]} 5. Nf3 {[%clk 0:02:57]}  Bg4 {[%clk 0:02:58]} 6. Be3 {[%clk 0:02:52]}  Bxf3 {[%clk 0:02:57]} 7. gxf3 {[%clk 0:02:53]}  e5 {[%clk 0:02:57]} 8. dxe5 {[%clk 0:02:50]}  dxe5 {[%clk 0:02:56]} 9. Qxd8+ {[%clk 0:02:49]}  Rxd8 {[%clk 0:02:57]} 10. fxe5 {[%clk 0:02:46]}  Nxe5 {[%clk 0:02:50]} 11. Be2 {[%clk 0:02:44]}  Nf6 {[%clk 0:02:49]} 12. O-O {[%clk 0:02:35]}  O-O {[%clk 0:02:47]} 13. Rad1 {[%clk 0:02:35]}  a6 {[%clk 0:02:29]} 14. h3 {[%clk 0:02:28]}  Nc6 {[%clk 0:02:09]} 15. Bg5 {[%clk 0:02:14]}  h6 {[%clk 0:02:03]} 16. Bh4 {[%clk 0:02:13]}  g5 {[%clk 0:01:52]} 17. Bf2 {[%clk 0:02:13]}  Nh5 {[%clk 0:01:46]} 18. Rfe1 {[%clk 0:01:53]}  Nf4 {[%clk 0:01:43]} 19. Bf1 {[%clk 0:01:52]}  Nd4 {[%clk 0:01:43]} 20. Bxd4 {[%clk 0:01:43]}  Bxd4+ {[%clk 0:01:44]} 21. Kh2 {[%clk 0:01:42]}  c6 {[%clk 0:01:16]} 22. Kg3 {[%clk 0:01:10]}  b5 {[%clk 0:01:07]} 23. Ne2 {[%clk 0:00:57]}  Nxe2+ {[%clk 0:00:56]} 24. Bxe2 {[%clk 0:00:58]}  Bxb2 {[%clk 0:00:56]} 25. Rxd8 {[%clk 0:00:58]}  Rxd8 {[%clk 0:00:56]} 26. Rd1 {[%clk 0:00:59]}  Rxd1 {[%clk 0:00:42]} 27. Bxd1 {[%clk 0:00:58]}  Kg7 {[%clk 0:00:42]} 28. f4 {[%clk 0:00:42]}  Kf6 {[%clk 0:00:41]} 29. Bg4 {[%clk 0:00:35]}  gxf4+ {[%clk 0:00:38]} 30. Kxf4 {[%clk 0:00:35]}  Bc1+ {[%clk 0:00:36]} 31. Kf3 {[%clk 0:00:32]}  Ke5 {[%clk 0:00:37]} 32. Bc8 {[%clk 0:00:27]}  a5 {[%clk 0:00:37]} 33. Bd7 {[%clk 0:00:27]}  Kd6 {[%clk 0:00:37]} 34. Be8 {[%clk 0:00:26]}  f6 {[%clk 0:00:36]} 35. Ke2 {[%clk 0:00:24]}  Bg5 {[%clk 0:00:30]} 36. Kd3 {[%clk 0:00:23]}  Kc5 {[%clk 0:00:28]} 37. Kc3 {[%clk 0:00:20]}  Bf4 {[%clk 0:00:28]} 38. Kb3 {[%clk 0:00:18]}  Bd2 {[%clk 0:00:26]} 39. Kb2 {[%clk 0:00:18]}  b4 {[%clk 0:00:20]} 40. Kb3 {[%clk 0:00:16]}  Kb5 {[%clk 0:00:18]} 41. Kb2 {[%clk 0:00:11]}  a4 {[%clk 0:00:15]} 42. Kb1 {[%clk 0:00:11]}  a3 {[%clk 0:00:13]} 43. Bd7 {[%clk 0:00:11]}  Kc5 {[%clk 0:00:13]} 44. Be8 {[%clk 0:00:07]}  Kd6 {[%clk 0:00:13]} 45. Bf7 {[%clk 0:00:07]}  c5 {[%clk 0:00:12]} 46. Bg6 {[%clk 0:00:07]}  Ke5 {[%clk 0:00:13]} 47. Bf5 {[%clk 0:00:07]}  Kf4 {[%clk 0:00:09]} 48. Bg6 {[%clk 0:00:07]}  Kg5 {[%clk 0:00:09]} 49. Bf5 {[%clk 0:00:07]}  h5 {[%clk 0:00:09]} 50. Bh7 {[%clk 0:00:07]}  Kf4 {[%clk 0:00:08]} 51. Bf5 {[%clk 0:00:08]}  Kf3 {[%clk 0:00:06]} 52. Bg6 {[%clk 0:00:08]}  h4 {[%clk 0:00:06]} 53. Bf5 {[%clk 0:00:08]}  Ke3 {[%clk 0:00:05]} 54. Bg6 {[%clk 0:00:09]}  Kf4 {[%clk 0:00:04]} 55. Bf5 {[%clk 0:00:09]}  Kg3 {[%clk 0:00:05]} 56. Bg6 {[%clk 0:00:10]}  Kxh3 {[%clk 0:00:04]} 57. Bf5+ {[%clk 0:00:09]}  Kg3 {[%clk 0:00:04]} 58. e5 {[%clk 0:00:07]}  fxe5 {[%clk 0:00:04]} 59. Be4 {[%clk 0:00:07]}  Bc3 {[%clk 0:00:05]} 60. Kc1 {[%clk 0:00:07]}  h3 {[%clk 0:00:05]} 61. Kd1 {[%clk 0:00:08]}  Kf2 {[%clk 0:00:05]} 62. Bd5 {[%clk 0:00:06]}  h2 {[%clk 0:00:06]} 63. Bh1 {[%clk 0:00:05]}  Kg1 {[%clk 0:00:07]} 64. Ke2 {[%clk 0:00:05]}  Kxh1 {[%clk 0:00:06]} 65. Kf1 {[%clk 0:00:06]}  e4 {[%clk 0:00:06]} 66. Ke2 {[%clk 0:00:06]}  c4 {[%clk 0:00:07]} 67. Kf1 {[%clk 0:00:05]}  e3 {[%clk 0:00:06]} 68. Ke2 {[%clk 0:00:05]}  Kg2 {[%clk 0:00:07]} 69. Kd1 {[%clk 0:00:03]}  Kf2 {[%clk 0:00:06]} 70. Kc1 {[%clk 0:00:02]}  h1=Q# {[%clk 0:00:07]} 0-1


[Site "https://www.chess.com"]